fUST/lending_fUST_20250607
["ID","MTS","AMOUNT","RATE_DAILY","PERIOD"]
[364809641,1749247840135,-455.05,0.00019452,2]
[364809642,1749247840280,-420.0,0.00019452,2]
[364809643,1749247840290,-440.0,0.00019452,2]
[364809644,1749247840300,-440.0,0.00019452,2]
[364809645,1749247840309,-440.0,0.00019452,2]
[364809646,1749247840319,-440.0,0.00019452,2]
[364809647,1749247840328,-440.0,0.00019452,2]
[364809648,1749247840338,-420.0,0.00019452,2]
[364809649,1749247840347,-361.0064111,0.00019452,2]
[364809650,1749247840358,-420.0,0.00019452,2]
[364809651,1749247840368,-420.0,0.00019452,2]
[364809652,1749247840377,-420.0,0.00019452,2]
[364809653,1749247840387,-420.0,0.00019452,2]
[364809654,1749247840396,-420.0,0.00019452,2]
[364809655,1749247840406,-420.0,0.00019452,2]
[364809656,1749247840416,-420.0,0.00019452,2]
[364809657,1749247840427,-420.0,0.00019452,2]
[364809658,1749247840436,-420.0,0.00019452,2]
[364809659,1749247840446,-752.8,0.00019452,2]
[364809660,1749247840455,-440.0,0.00019452,2]
[364809661,1749247840465,-420.0,0.00019452,2]
[364809662,1749247840474,-420.0,0.00019452,2]
[364809663,1749247840484,-440.0,0.00019452,2]
[364809664,1749247840494,-420.0,0.00019452,2]
[364809665,1749247840503,-440.0,0.00019452,2]
[364809666,1749247840513,-440.0,0.00019452,2]
[364809667,1749247840523,-440.0,0.00019452,2]
[364809668,1749247840533,-420.0,0.00019452,2]
[364809669,1749247840543,-440.0,0.00019452,2]
[364809670,1749247840553,-420.0,0.00019452,2]
[364809671,1749247840562,-420.0,0.00019452,2]
[364809672,1749247840572,-420.0,0.00019452,2]
[364809673,1749247840582,-194.34349604,0.00019452,2]
[364809674,1749247840591,-420.0,0.00019452,2]
[364809675,1749247840601,-492.75229041,0.00019452,2]
[364809676,1749247840612,-465.81552741,0.00019452,2]
[364809677,1749247840621,-420.0,0.00019452,2]
[364809678,1749247840630,-420.0,0.00019452,2]
[364809679,1749247840640,-440.0,0.00019452,2]
[364809680,1749247840649,-440.0,0.00019452,2]
[364809681,1749247840659,-440.0,0.00019452,2]
[364809682,1749247840668,-420.0,0.00019452,2]
[364809683,1749247840679,-440.0,0.00019452,2]
[364809684,1749247840689,-420.0,0.00019452,2]
[364809685,1749247840698,-420.0,0.00019452,2]
[364809686,1749247840708,-440.0,0.00019452,2]
[364809687,1749247840718,-1508.45,0.00019452,2]
[364809688,1749247840728,-330.0,0.00019452,2]
[364809689,1749247840738,-420.0,0.00019452,2]
[364809690,1749247840748,-440.0,0.00019452,2]
[364809691,1749247840758,-440.0,0.00019452,2]
[364809692,1749247840767,-420.0,0.00019452,2]
[364809693,1749247840776,-420.0,0.00019452,2]
[364809695,1749247840786,-420.0,0.00019452,2]
[364809697,1749247840795,-440.0,0.00019452,2]
[364809699,1749247840804,-440.0,0.00019452,2]
[364809701,1749247840814,-522.69,0.00019452,2]
[364809703,1749247840823,-420.0,0.00019452,2]
[364809705,1749247840832,-472.54944565,0.00019452,2]
[364809706,1749247840841,-420.0,0.00019452,2]
[364809708,1749247840851,-473.8913643,0.00019452,2]
[364809710,1749247840860,-440.0,0.00019452,2]
[364809712,1749247840870,-361.91294075,0.00019452,2]
[364809714,1749247840879,-420.0,0.00019452,2]
[364809716,1749247840889,-440.0,0.00019452,2]
[364809718,1749247840898,-440.0,0.00019452,2]
[364809720,1749247840907,-420.0,0.00019452,2]
[364809721,1749247840916,-440.0,0.00019452,2]
[364809723,1749247840926,-621.38,0.00019452,2]
[364809725,1749247840936,-420.0,0.00019452,2]
[364809727,1749247840945,-440.0,0.00019452,2]
[364809729,1749247840955,-420.0,0.00019452,2]
[364809731,1749247840964,-216.07208946,0.00019452,2]
[364809733,1749247840973,-420.0,0.00019452,2]
[364809735,1749247840983,-420.0,0.00019452,2]
[364809736,1749247840992,-440.0,0.00019452,2]
[364809738,1749247841001,-1258.17,0.00019452,2]
[364809740,1749247841010,-440.0,0.00019452,2]
[364809742,1749247841020,-420.0,0.00019452,2]
[364809744,1749247841029,-440.0,0.00019452,2]
[364809746,1749247841038,-440.0,0.00019452,2]
[364809748,1749247841048,-440.0,0.00019452,2]
[364809750,1749247841057,-440.0,0.00019452,2]
[364809751,1749247841066,-440.0,0.00019452,2]
[364809753,1749247841076,-440.0,0.00019452,2]
[364809755,1749247841086,-440.0,0.00019452,2]
[364809757,1749247841095,-420.0,0.00019452,2]
[364809759,1749247841106,-420.0,0.00019452,2]
[364809761,1749247841115,-420.0,0.00019452,2]
[364809763,1749247841124,-420.0,0.00019452,2]
[364809765,1749247841138,-420.0,0.00019452,2]
[364809767,1749247841148,-497.67760231,0.00019452,2]
[364809769,1749247841157,-187.48,0.00019452,2]
[364809771,1749247841167,-440.0,0.00019452,2]
[364809773,1749247841176,-420.0,0.00019452,2]
[364809774,1749247841185,-420.0,0.00019452,2]
[364809776,1749247841194,-460.0,0.00019452,2]
[364809778,1749247841204,-440.0,0.00019452,2]
[364809780,1749247841214,-420.0,0.00019452,2]
[364809782,1749247841223,-440.0,0.00019452,2]
[364809784,1749247841232,-440.0,0.00019452,2]
[364809786,1749247841241,-506.02723809,0.00019452,2]
[364809787,1749247841250,-637.98,0.00019452,2]
[364809789,1749247841260,-617.38,0.00019452,2]
[364809791,1749247841270,-440.0,0.00019452,2]
[364809793,1749247841279,-420.0,0.00019452,2]
[364809795,1749247841288,-319.67536577,0.00019452,2]
[364809797,1749247841298,-440.0,0.00019452,2]
[364809799,1749247841307,-440.0,0.00019452,2]
[364809801,1749247841316,-420.0,0.00019452,2]
[364809803,1749247841326,-440.0,0.00019452,2]
[364809805,1749247841335,-440.0,0.00019452,2]
[364809807,1749247841345,-668.6,0.00019452,2]
[364809809,1749247841355,-420.0,0.00019452,2]
[364809811,1749247841365,-440.0,0.00019452,2]
[364809813,1749247841374,-764.03,0.00019452,2]
[364809815,1749247841383,-440.0,0.00019452,2]
[364809817,1749247841392,-440.0,0.00019452,2]
[364809819,1749247841402,-440.0,0.00019452,2]
[364809821,1749247841411,-1087.32,0.00019452,2]
[364809823,1749247841420,-440.0,0.00019452,2]
[364809825,1749247841429,-440.0,0.00019452,2]
[364809827,1749247841439,-440.0,0.00019452,2]
[364809829,1749247841448,-420.0,0.00019452,2]
[364809831,1749247841458,-1169.8,0.00019452,2]
[364809833,1749247841468,-420.0,0.00019452,2]
[364809835,1749247841478,-1217.81,0.00019452,2]
[364809837,1749247841487,-501.49495753,0.00019527,2]
[364809839,1749247841496,-500.0,0.00019653,2]
[364809840,1749247841506,-623.21563338,0.00019653,2]
[364809841,1749247841515,-420.0,0.00019654,2]
[364809842,1749247841525,-1000.0,0.00019721,2]
[364809843,1749247841534,-440.0,0.00019726,2]
[364809844,1749247841543,-401.25266767,0.00019726,2]
[364809845,1749247841553,-168.25653715,0.00019726,2]
[364809846,1749247841563,-440.0,0.00019726,2]
[364809847,1749247841573,-440.0,0.00019726,2]
[364809848,1749247841582,-360.0,0.00019726,2]
[364809849,1749247841591,-412.27280839,0.00019726,2]
[364809850,1749247841601,-440.0,0.00019726,2]
[364809851,1749247841612,-410.0,0.00019726,2]
[364809852,1749247841622,-400.0,0.00019726,2]
[364809853,1749247841632,-410.0,0.00019726,2]
[364809854,1749247841641,-349.96880569,0.00019726,2]
[364809855,1749247841651,-420.11,0.00019726,2]
[364809856,1749247841660,-410.0,0.00019726,2]
[364809857,1749247841670,-440.0,0.00019726,2]
[364809858,1749247841679,-440.0,0.00019726,2]
[364809859,1749247841689,-440.0,0.00019726,2]
[364809860,1749247841699,-440.0,0.00019726,2]
[364809861,1749247841709,-440.0,0.00019726,2]
[364809862,1749247841718,-162.67,0.00019726,2]
[364809863,1749247841728,-733.76,0.00019726,2]
[364809864,1749247841737,-440.0,0.00019726,2]
[364809865,1749247841746,-455.05,0.00019726,2]
[364809866,1749247841756,-437.72,0.00019726,2]
[364809867,1749247841765,-440.0,0.00019726,2]
[364809868,1749247841775,-440.0,0.00019726,2]
[364809869,1749247841784,-440.0,0.00019726,2]
[364809870,1749247841794,-380.0,0.00019726,2]
[364809871,1749247841804,-752.8,0.00019726,2]
[364809872,1749247841813,-440.0,0.00019726,2]
[364809873,1749247841823,-440.0,0.00019726,2]
[364809874,1749247841833,-440.0,0.00019726,2]
[364809875,1749247841842,-331.45830907,0.00019726,2]
[364809876,1749247841851,-438.71472548,0.00019726,2]
[364809877,1749247841861,-440.0,0.00019726,2]
[364809878,1749247841871,-440.0,0.00019726,2]
[364809879,1749247841880,-440.0,0.00019726,2]
[364809880,1749247841890,-440.0,0.00019726,2]
[364809881,1749247841899,-370.0,0.00019726,2]
[364809882,1749247841908,-440.0,0.00019726,2]
[364809883,1749247841918,-1508.45,0.00019726,2]
[364809884,1749247841927,-420.0,0.00019726,2]
[364809885,1749247841936,-440.0,0.00019726,2]
[364809887,1749247841945,-440.0,0.00019726,2]
[364809888,1749247841954,-440.0,0.00019726,2]
[364809889,1749247841963,-522.69,0.00019726,2]
[364809891,1749247841972,-440.0,0.00019726,2]
[364809892,1749247841981,-440.0,0.00019726,2]
[364809893,1749247841990,-440.0,0.00019726,2]
[364809895,1749247841999,-283.92,0.00019726,2]
[364809896,1749247842008,-621.38,0.00019726,2]
[364809898,1749247842017,-550.06525123,0.00019726,2]
[364809899,1749247842026,-302.82,0.00019726,2]
[364809901,1749247842036,-1258.17,0.00019726,2]
[364809903,1749247842045,-440.0,0.00019726,2]
[364809905,1749247842054,-440.0,0.00019726,2]
[364809907,1749247842063,-440.0,0.00019726,2]
[364809909,1749247842073,-440.0,0.00019726,2]
[364809911,1749247842083,-440.0,0.00019726,2]
[364809914,1749247842093,-440.0,0.00019726,2]
[364809916,1749247842102,-440.0,0.00019726,2]
[364809918,1749247842112,-440.0,0.00019726,2]
[364809920,1749247842122,-440.0,0.00019726,2]
[364809922,1749247842134,-501.60400265,0.00019726,2]
[364809924,1749247842143,-440.0,0.00019726,2]
[364809926,1749247842153,-440.0,0.00019726,2]
[364809928,1749247842163,-637.98,0.00019726,2]
[364809930,1749247842174,-617.38,0.00019726,2]
[364809932,1749247842183,-440.0,0.00019726,2]
[364809934,1749247842193,-440.0,0.00019726,2]
[364809936,1749247842202,-440.0,0.00019726,2]
[364809938,1749247842212,-668.6,0.00019726,2]
[364809940,1749247842222,-440.0,0.00019726,2]
[364809942,1749247842231,-764.03,0.00019726,2]
[364809944,1749247842240,-440.0,0.00019726,2]
[364809946,1749247842249,-440.0,0.00019726,2]
[364809948,1749247842259,-1087.32,0.00019726,2]
[364809950,1749247842268,-410.0,0.00019726,2]
[364809952,1749247842277,-440.0,0.00019726,2]
[364809954,1749247842286,-1169.8,0.00019726,2]
[364809956,1749247842295,-177.87831901,0.00019847,2]
[364809958,1749247842304,-1000.0,0.00019897,2]
[364809960,1749247842314,-440.0,0.0002,2]
[364809962,1749247842323,-440.0,0.0002,2]
[364809964,1749247842332,-440.0,0.0002,2]
[364809966,1749247842341,-440.0,0.0002,2]
[364809968,1749247842351,-440.86628721,0.0002,2]
[364809970,1749247842360,-440.0,0.0002,2]
[364809972,1749247842370,-440.0,0.0002,2]
[364809974,1749247842379,-371.35606081,0.0002,2]
[364809976,1749247842388,-400.0,0.0002,2]
[364809978,1749247842397,-733.76,0.0002,2]
[364809980,1749247842406,-440.0,0.0002,2]
[364809982,1749247842415,-455.05,0.0002,2]
[364809984,1749247842424,-440.0,0.0002,2]
[364809986,1749247842433,-440.0,0.0002,2]
[364809988,1749247842443,-390.0,0.0002,2]
[364809990,1749247842453,-752.8,0.0002,2]
[364809992,1749247842463,-440.0,0.0002,2]
[364809994,1749247842473,-440.0,0.0002,2]
[364809996,1749247842483,-440.0,0.0002,2]
[364809998,1749247842493,-440.0,0.0002,2]
[364810000,1749247842502,-440.0,0.0002,2]
[364810002,1749247842512,-440.0,0.0002,2]
[364810004,1749247842522,-566.11,0.0002,2]
[364810006,1749247842532,-440.0,0.0002,2]
[364810008,1749247842541,-1508.45,0.0002,2]
[364810010,1749247842550,-440.0,0.0002,2]
[364810012,1749247842559,-440.0,0.0002,2]
[364810014,1749247842568,-440.0,0.0002,2]
[364810016,1749247842578,-522.69,0.0002,2]
[364810018,1749247842587,-440.0,0.0002,2]
[364810020,1749247842596,-440.0,0.0002,2]
[364810022,1749247842605,-440.0,0.0002,2]
[364810024,1749247842616,-621.38,0.0002,2]
[364810026,1749247842625,-1258.17,0.0002,2]
[364810028,1749247842635,-370.0,0.0002,2]
[364810030,1749247842644,-410.0,0.0002,2]
[364810032,1749247842654,-440.0,0.0002,2]
[364810034,1749247842663,-440.0,0.0002,2]
[364810036,1749247842673,-440.0,0.0002,2]
[364810038,1749247842682,-440.0,0.0002,2]
[364810040,1749247842691,-440.0,0.0002,2]
[364810042,1749247842700,-440.0,0.0002,2]
[364810044,1749247842710,-440.0,0.0002,2]
[364810046,1749247842720,-189.54,0.0002,2]
[364810048,1749247842729,-440.0,0.0002,2]
[364810050,1749247842738,-637.98,0.0002,2]
[364810052,1749247842747,-617.38,0.0002,2]
[364810054,1749247842757,-490.0,0.0002,2]
[364810056,1749247842766,-440.0,0.0002,2]
[364810058,1749247842776,-440.0,0.0002,2]
[364810060,1749247842785,-668.6,0.0002,2]
[364810062,1749247842795,-440.0,0.0002,2]
[364810064,1749247842804,-764.03,0.0002,2]
[364810066,1749247842814,-440.0,0.0002,2]
[364810068,1749247842823,-440.0,0.0002,2]
[364810070,1749247842832,-1087.32,0.0002,2]
[364810072,1749247842841,-440.0,0.0002,2]
[364810074,1749247842850,-1169.8,0.0002,2]
[364810076,1749247842862,-248.187,0.00020139,2]
[364810078,1749247842872,-357.974581,0.00020187,2]
[364810080,1749247842881,-440.0,0.00020273,2]
[364810082,1749247842892,-430.0,0.00020273,2]
[364810084,1749247842901,-430.0,0.00020273,2]
[364810086,1749247842911,-440.0,0.00020273,2]
[364810088,1749247842920,-380.0,0.00020273,2]
[364810090,1749247842931,-440.0,0.00020273,2]
[364810092,1749247842941,-733.76,0.00020273,2]
[364810094,1749247842950,-440.0,0.00020273,2]
[364810096,1749247842960,-455.05,0.00020273,2]
[364810098,1749247842969,-440.0,0.00020273,2]
[364810100,1749247842978,-440.0,0.00020273,2]
[364810102,1749247842988,-752.8,0.00020273,2]
[364810104,1749247842997,-440.0,0.00020273,2]
[364810106,1749247843007,-440.0,0.00020273,2]
[364810108,1749247843016,-440.0,0.00020273,2]
[364810110,1749247843025,-440.0,0.00020273,2]
[364810112,1749247843035,-440.0,0.00020273,2]
[364810114,1749247843044,-440.0,0.00020273,2]
[364810116,1749247843053,-440.0,0.00020273,2]
[364810129,1749247843161,-1508.45,0.00020273,2]
[364810131,1749247843171,-440.0,0.00020273,2]
[364810133,1749247843183,-440.0,0.00020273,2]
[364810135,1749247843192,-440.0,0.00020273,2]
[364810137,1749247843201,-522.69,0.00020273,2]
[364810139,1749247843212,-440.0,0.00020273,2]
[364810141,1749247843222,-440.0,0.00020273,2]
[364810143,1749247843231,-477.18906685,0.00020273,2]
[364810145,1749247843241,-621.38,0.00020273,2]
[364810147,1749247843250,-1258.17,0.00020273,2]
[364810149,1749247843260,-440.0,0.00020273,2]
[364810151,1749247843270,-440.0,0.00020273,2]
[364810153,1749247843280,-440.0,0.00020273,2]
[364810155,1749247843289,-440.0,0.00020273,2]
[364810157,1749247843299,-440.0,0.00020273,2]
[364810159,1749247843308,-440.0,0.00020273,2]
[364810161,1749247843317,-440.0,0.00020273,2]
[364810163,1749247843327,-440.0,0.00020273,2]
[364810165,1749247843336,-637.98,0.00020273,2]
[364810167,1749247843345,-617.38,0.00020273,2]
[364810169,1749247843355,-440.0,0.00020273,2]
[364810171,1749247843365,-440.0,0.00020273,2]
[364810173,1749247843375,-668.6,0.00020273,2]
[364810175,1749247843385,-440.0,0.00020273,2]
[364810177,1749247843395,-764.03,0.00020273,2]
[364810179,1749247843404,-440.0,0.00020273,2]
[364810182,1749247843415,-440.0,0.00020273,2]
[364810184,1749247843424,-1087.32,0.00020273,2]
[364810186,1749247843434,-440.0,0.00020273,2]
[364810188,1749247843444,-1169.8,0.00020273,2]
[364810190,1749247843453,-150.0,0.0002029,2]
[364810192,1749247843462,-358.91743924,0.00020294,2]
[364810194,1749247843472,-229.52673067,0.00020303,2]
[364810196,1749247843482,-423.83542519,0.00020303,2]
[364810198,1749247843492,-160.0,0.00020303,2]
[364810200,1749247843502,-834.50537533,0.00020303,2]
[364810202,1749247843511,-160.0,0.00020303,2]
[364810204,1749247843521,-842.5625,0.00020303,2]
[364810206,1749247843531,-3176.0,0.00020546,2]
[364810208,1749247843541,-3176.0,0.00020546,2]
[364810210,1749247843550,-3176.0,0.00020546,2]
[364810212,1749247843560,-440.0,0.00020547,2]
[364810214,1749247843569,-440.0,0.00020547,2]
[364810216,1749247843579,-733.76,0.00020547,2]
[364810218,1749247843588,-440.0,0.00020547,2]
[364810220,1749247843597,-455.05,0.00020547,2]
[364810222,1749247843606,-440.0,0.00020547,2]
[364810224,1749247843617,-440.0,0.00020547,2]
[364810226,1749247843627,-752.8,0.00020547,2]
[364810228,1749247843637,-440.0,0.00020547,2]
[364810230,1749247843646,-440.0,0.00020547,2]
[364810232,1749247843655,-440.0,0.00020547,2]
[364810234,1749247843664,-430.4697347,0.00020547,2]
[364810236,1749247843674,-440.0,0.00020547,2]
[364810238,1749247843685,-440.0,0.00020547,2]
[364810240,1749247843695,-1508.45,0.00020547,2]
[364810242,1749247843705,-440.0,0.00020547,2]
[364810244,1749247843714,-440.0,0.00020547,2]
[364810246,1749247843723,-179.52,0.00020547,2]
[364810248,1749247843733,-522.69,0.00020547,2]
[364810250,1749247843742,-440.0,0.00020547,2]
[364810252,1749247843752,-440.0,0.00020547,2]
[364810254,1749247843761,-621.38,0.00020547,2]
[364810256,1749247843770,-1258.17,0.00020547,2]
[364810258,1749247843780,-440.0,0.00020547,2]
[364810260,1749247843790,-190.0,0.00020547,2]
[364810262,1749247843799,-440.0,0.00020547,2]
[364810264,1749247843808,-440.0,0.00020547,2]
[364810266,1749247843817,-440.0,0.00020547,2]
[364810268,1749247843826,-440.0,0.00020547,2]
[364810270,1749247843836,-440.0,0.00020547,2]
[364810272,1749247843845,-637.98,0.00020547,2]
[364810274,1749247843855,-617.38,0.00020547,2]
[364810276,1749247843865,-440.0,0.00020547,2]
[364810278,1749247843875,-668.6,0.00020547,2]
[364810280,1749247843884,-171.61,0.00020547,2]
[364810282,1749247843894,-764.03,0.00020547,2]
[364810284,1749247843904,-440.0,0.00020547,2]
[364810286,1749247843913,-440.0,0.00020547,2]
[364810288,1749247843922,-1087.32,0.00020547,2]
[364810290,1749247843933,-440.0,0.00020547,2]
[364810292,1749247843943,-1169.8,0.00020547,2]
[364810294,1749247843952,-500.0,0.00020548,2]
[364810296,1749247843962,-500.0,0.00020548,2]
[364810298,1749247843972,-402.71705427,0.00020548,2]
[364810300,1749247843981,-307.8,0.000206,2]
[364810302,1749247843991,-2702.51060972,0.000206,2]
[364810314,1749247844091,-299.86510871,0.000206,2]
[364810341,1749247844338,-268.89155346,0.00018978,2]
[364810343,1749247844347,-430.0,0.00019178,2]
[364810345,1749247844356,-440.0,0.00019178,2]
[364810347,1749247844367,-420.0,0.00019452,2]
[364810349,1749247844376,-1139.60728375,0.00019726,2]
[364810352,1749247844387,-78.20271625,0.00019726,2]
[364810354,1749247844396,-1217.81,0.0002,2]
[364810356,1749247844405,-1217.81,0.00020273,2]
[364810358,1749247844415,-1217.81,0.00020547,2]
[364810360,1749247844424,-872.02524575,0.000206,2]
[364810362,1749247844435,-3122.1875981,0.000206,2]
[364810364,1749247844446,-5113.02886269,0.000206,2]
[364810366,1749247844457,-16835.095,0.000206,2]
[364810418,1749247844935,-119.50484116,0.000206,2]
[364810420,1749247844947,-772.79413623,0.000206,2]
[364810422,1749247844959,-493.28256153,0.000206,2]
[364810425,1749247844970,-383.112,0.000206,2]
[364810445,1749247845159,-430.0,0.000206,2]
[364810542,1749247876758,150.0,0.00017053,2]
[364810544,1749247891657,301.76479,0.00024658,120]
[364810546,1749247948873,150.0,0.00017023,2]
[364810547,1749247952027,213.90470002,0.00017914,2]
[364810548,1749248020068,150.0,0.00017021,2]
[364810549,1749248091066,150.0,0.00016971,2]
[364810550,1749248162433,150.0,0.00017023,2]
[364810551,1749248231583,150.0,0.00016981,2]
[364810553,1749248293478,170.30281522,0.00017773,2]
[364810559,1749248559682,322.177122,0.00013699,2]
[364810560,1749248578326,150.0,0.00016992,2]
[364810561,1749248595368,178.93971833,0.00017652,2]
[364810562,1749248649273,150.0,0.00017001,2]
[364810568,1749248719688,150.0,0.00017014,2]
[364810581,1749248789416,150.0,0.00017017,2]
[364810584,1749248826093,-300.0,0.00018196,2]
[364810585,1749248826115,-300.0,0.00018197,2]
[364810586,1749248826137,-300.0,0.00018197,2]
[364810587,1749248826334,-1200.0,0.00018197,2]
[364810588,1749248826362,-300.0,0.00018197,2]
[364810589,1749248826386,-10104.451963,0.00018198,2]
[364810591,1749248835099,-9224.6747582,0.00018198,2]
[364810619,1749248870286,-241.78191026,0.00018,2]
[364810621,1749248872928,-402.58715348,0.00018,2]
[364810624,1749248877462,-301.51309091,0.00018,2]
[364810625,1749248880138,-186.23675429,0.00018,2]
[364810626,1749248882863,-166.33929179,0.00018,2]
[364810627,1749248886895,-255.11607998,0.00018,2]
[364810628,1749248889570,-347.90628618,0.00018,2]
[364810633,1749248895530,-179.90955412,0.00018,2]
[364810634,1749248898084,-273.4537256,0.00018,2]
[364810636,1749248903202,-162.01370477,0.00018,2]
[364810637,1749248905236,-166.41986631,0.00018,2]
[364810642,1749248911709,500.0,0.00017999,2]
[364810643,1749248911777,500.0,0.00017999,2]
[364810644,1749248911969,500.0,0.00017999,2]
[364810645,1749248912022,500.0,0.00017999,2]
[364810646,1749248912114,469.37520484,0.00017999,2]
[364810647,1749248913166,-259.66870822,0.00018,2]
[364810650,1749248916214,-224.536575,0.00018,2]
[364810651,1749248918386,-249.78,0.00018,2]
[364810654,1749248919910,-230.56676435,0.00018,2]
[364810656,1749248921984,-159.66683611,0.00018,2]
[364810658,1749248924071,-224.66716219,0.00018,2]
[364810659,1749248926329,-213.65266235,0.00018,2]
[364810660,1749248927489,150.0,0.00016972,2]
[364810661,1749248931054,-198.1472088,0.00018,2]
[364810662,1749248933879,-166.5461409,0.00018,2]
[364810663,1749248936935,-203.01044608,0.00018,2]
[364810664,1749248939832,-326.06086611,0.00018,2]
[364810665,1749248942486,-156.63888565,0.00018,2]
[364810666,1749248943023,300.0,0.00017999,2]
[364810667,1749248943941,-178.21868232,0.00018,2]
[364810668,1749248947133,-156.78625943,0.00018,2]
[364810669,1749248950225,-263.39421964,0.00018,2]
[364810670,1749248956109,-335.09127445,0.00018,2]
[364810671,1749248956261,-4521.02430496,0.00018,2]
[364810672,1749248958387,-151.09548601,0.00018,2]
[364810673,1749248960242,-231.02883716,0.00018,2]
[364810674,1749248961838,-163.484949,0.00018,2]
[364810675,1749248962514,432.6808908,0.00017968,2]
[364810676,1749248963161,-115482.9401905,0.00018,2]
[364810677,1749248963184,-154.73969275,0.00018098,2]
[364810678,1749248963205,-5570.8732788,0.00018198,2]
[364810679,1749248963226,-2234.5439989,0.00018322,2]
[364810680,1749248963247,-526.930084,0.00018432,2]
[364810681,1749248963268,-150.0,0.00018603,2]
[364810682,1749248963289,-213.13105891,0.00018655,2]
[364810687,1749248991011,159.0,0.00016438,3]
[364810689,1749248998069,150.0,0.00017019,2]
[364810690,1749249013420,500.0,0.00017999,2]
[364810732,1749249038223,-150.0,0.00018567,2]
[364810733,1749249038233,-36.86894109,0.00018655,2]
[364810734,1749249038243,-160.0,0.00018897,2]
[364810735,1749249038253,-1353.42784329,0.000189,2]
[364810736,1749249038262,-154.73969268,0.00019005,2]
[364810737,1749249038274,-204.0447223,0.00019058,2]
[364810738,1749249038284,-300.0,0.00019177,2]
[364810739,1749249038294,-430.0,0.00019178,2]
[364810740,1749249038303,-430.0,0.00019178,2]
[364810741,1749249038313,-308.24959544,0.00019178,2]
[364810743,1749249038326,-145.86084163,0.00019178,2]
[364810744,1749249038336,-262.71262516,0.00019178,2]
[364810748,1749249038373,-272.5430213,0.00019178,2]
[364810895,1749249040907,-0.0069076,0.00019178,2]
[364813472,1749249067967,150.0,0.00016977,2]
[364814216,1749249137230,150.0,0.00017037,2]
[364814217,1749249206592,97.6392977,0.00017033,2]
[364814218,1749249206617,52.3607023,0.00017033,2]
[364814220,1749249275519,150.0,0.0001703,2]
[364814221,1749249282093,902.5,0.00024658,120]
[364814222,1749249345330,150.0,0.0001703,2]
[364814224,1749249418917,150.0,0.00016972,2]
[364814228,1749249489021,150.0,0.00016971,2]
[364814229,1749249510745,160.0,0.00017999,2]
[364814230,1749249556622,150.0,0.00016985,2]
[364814232,1749249600676,345.461426,0.00013699,2]
[364814233,1749249625984,150.0,0.00016977,2]
[364814235,1749249662225,17764.9827215,0.00017983,2]
[364814238,1749249700432,150.0,0.00017222,2]
[364814243,1749249771882,150.0,0.0001721,2]